[Event "Late-Titled-Tuesday-Blitz-September-26-2023"]
[Site "Chess.com"]
[Date "2023.09.26"]
[Round "11"]
[White "Rainbow2014"]
[Black "Dacean99"]
[Result "0-1"]
[WhiteElo "2436"]
[BlackElo "2549"]
[TimeControl "180+1"]
[EndTime "16:01:06 PDT"]
[Termination "Dacean99 won on time"]

1. e4 {[%clk 0:03:00.9]} 1... d6 {[%clk 0:02:59.8]} 2. d4 {[%clk 0:02:59.3]}
2... Nf6 {[%clk 0:03:00]} 3. Nc3 {[%clk 0:02:59.6]} 3... g6 {[%clk 0:02:59.7]}
4. f4 {[%clk 0:03:00]} 4... Bg7 {[%clk 0:02:59.5]} 5. Nf3 {[%clk 0:03:00.5]}
5... O-O {[%clk 0:02:58.8]} 6. Bd3 {[%clk 0:03:00.9]} 6... c5 {[%clk 0:02:58.3]}
7. d5 {[%clk 0:03:01.2]} 7... b5 {[%clk 0:02:48.5]} 8. Bxb5 {[%clk 0:02:56.3]}
8... Nxe4 {[%clk 0:02:46.9]} 9. Nxe4 {[%clk 0:02:54.1]} 9... Qa5+ {[%clk
0:02:45.9]} 10. Nc3 {[%clk 0:02:53.2]} 10... Bxc3+ {[%clk 0:02:45.1]} 11. bxc3
{[%clk 0:02:53.7]} 11... Qxb5 {[%clk 0:02:45.6]} 12. Nd2 {[%clk 0:02:30]} 12...
Bf5 {[%clk 0:02:31]} 13. c4 {[%clk 0:02:26.9]} 13... Qa5 {[%clk 0:02:30.7]} 14.
O-O {[%clk 0:02:25.2]} 14... Qc3 {[%clk 0:02:31]} 15. Nb3 {[%clk 0:02:12.5]}
15... Bxc2 {[%clk 0:02:30.2]} 16. Qd2 {[%clk 0:02:02]} 16... Qxd2 {[%clk
0:02:23]} 17. Bxd2 {[%clk 0:02:00.5]} 17... Nd7 {[%clk 0:02:21.8]} 18. Na5
{[%clk 0:01:51.5]} 18... Nb6 {[%clk 0:02:18.2]} 19. Rfc1 {[%clk 0:01:47.8]}
19... Bd3 {[%clk 0:02:16.7]} 20. Rc3 {[%clk 0:01:48.1]} 20... Bf5 {[%clk
0:02:14.4]} 21. Nc6 {[%clk 0:01:44.1]} 21... Rfe8 {[%clk 0:02:14]} 22. Re1
{[%clk 0:01:41.2]} 22... Kf8 {[%clk 0:02:12]} 23. h3 {[%clk 0:01:41]} 23... h5
{[%clk 0:02:11.1]} 24. Kf2 {[%clk 0:01:37.7]} 24... Bd7 {[%clk 0:02:08.4]} 25.
Na5 {[%clk 0:01:37]} 25... Rab8 {[%clk 0:02:07.1]} 26. Kf3 {[%clk 0:01:36.7]}
26... Na4 {[%clk 0:02:05.9]} 27. Rc2 {[%clk 0:01:29.3]} 27... Rb2 {[%clk
0:02:06.1]} 28. Rec1 {[%clk 0:01:25.7]} 28... Reb8 {[%clk 0:02:04.5]} 29. g4
{[%clk 0:01:24.8]} 29... hxg4+ {[%clk 0:02:03.7]} 30. hxg4 {[%clk 0:01:25.7]}
30... Rxc2 {[%clk 0:02:02.3]} 31. Rxc2 {[%clk 0:01:25.8]} 31... Rb2 {[%clk
0:02:02.1]} 32. Rxb2 {[%clk 0:01:14.6]} 32... Nxb2 {[%clk 0:02:03]} 33. Bc3
{[%clk 0:01:07.9]} 33... Na4 {[%clk 0:02:00.2]} 34. Bd2 {[%clk 0:00:56.6]} 34...
Nb6 {[%clk 0:01:58.2]} 35. Be1 {[%clk 0:00:42.5]} 35... Ke8 {[%clk 0:01:57.3]}
36. Bh4 {[%clk 0:00:41.2]} 36... Ba4 {[%clk 0:01:56.2]} 37. Ke3 {[%clk
0:00:36.7]} 37... Bd1 {[%clk 0:01:55.2]} 38. g5 {[%clk 0:00:33.1]} 38... Bc2
{[%clk 0:01:54.4]} 39. Be1 {[%clk 0:00:31.5]} 39... Bb1 {[%clk 0:01:53.4]} 40.
a3 {[%clk 0:00:30.9]} 40... Kd7 {[%clk 0:01:51.3]} 41. Kd2 {[%clk 0:00:26.4]}
41... Bf5 {[%clk 0:01:49.1]} 42. Kc3 {[%clk 0:00:26.2]} 42... Bg4 {[%clk
0:01:49]} 43. Nc6 {[%clk 0:00:24.6]} 43... a6 {[%clk 0:01:48.3]} 44. Nb8+ {[%clk
0:00:24.2]} 44... Kc8 {[%clk 0:01:47.3]} 45. Nc6 {[%clk 0:00:21.8]} 45... e6
{[%clk 0:01:45.8]} 46. dxe6 {[%clk 0:00:20.6]} 46... Bxe6 {[%clk 0:01:46.7]} 47.
Na5 {[%clk 0:00:18.4]} 47... Kc7 {[%clk 0:01:42.4]} 48. Bg3 {[%clk 0:00:18.6]}
48... Bf5 {[%clk 0:01:40.9]} 49. Nb3 {[%clk 0:00:18.7]} 49... Na4+ {[%clk
0:01:38.9]} 50. Kd2 {[%clk 0:00:17.8]} 50... Be6 {[%clk 0:01:39]} 51. Kd3 {[%clk
0:00:17.1]} 51... Nb2+ {[%clk 0:01:39.1]} 52. Kc3 {[%clk 0:00:17.5]} 52... Nxc4
{[%clk 0:01:39.7]} 53. Nc1 {[%clk 0:00:16.8]} 53... Nxa3 {[%clk 0:01:39.1]} 54.
Nb3 {[%clk 0:00:16.5]} 54... Nb5+ {[%clk 0:01:38.9]} 55. Kb2 {[%clk 0:00:16.3]}
55... c4 {[%clk 0:01:38.3]} 56. Na5 {[%clk 0:00:15]} 56... c3+ {[%clk
0:01:38.2]} 57. Kc1 {[%clk 0:00:15.3]} 57... Bf5 {[%clk 0:01:39]} 58. Bf2 {[%clk
0:00:15]} 58... d5 {[%clk 0:01:37.3]} 59. Nb3 {[%clk 0:00:15.2]} 59... Kd6
{[%clk 0:01:35]} 60. Nd4 {[%clk 0:00:15.3]} 60... Nxd4 {[%clk 0:01:30.8]} 61.
Bxd4 {[%clk 0:00:16.2]} 61... c2 {[%clk 0:01:30.9]} 62. Kb2 {[%clk 0:00:16.3]}
62... Kc6 {[%clk 0:01:31.3]} 63. Be3 {[%clk 0:00:16.1]} 63... Kb5 {[%clk
0:01:31.6]} 64. Kc3 {[%clk 0:00:16.3]} 64... a5 {[%clk 0:01:30.6]} 65. Kb3
{[%clk 0:00:16.7]} 65... a4+ {[%clk 0:01:30.6]} 66. Kc3 {[%clk 0:00:17]} 66...
a3 {[%clk 0:01:30.9]} 67. Kb3 {[%clk 0:00:17.6]} 67... a2 {[%clk 0:01:31.1]} 68.
Kxa2 {[%clk 0:00:17.9]} 68... Kc4 {[%clk 0:01:32]} 69. Kb2 {[%clk 0:00:17.9]}
69... d4 {[%clk 0:01:32.6]} 70. Bd2 {[%clk 0:00:18.2]} 70... Kd3 {[%clk
0:01:32.7]} 71. Kc1 {[%clk 0:00:18.7]} 71... Ke2 {[%clk 0:01:30.8]} 72. Ba5
{[%clk 0:00:17.7]} 72... Kf2 {[%clk 0:01:29.1]} 73. Kd2 {[%clk 0:00:17.3]} 73...
Kf3 {[%clk 0:01:28.8]} 74. Bc7 {[%clk 0:00:17.6]} 74... Be4 {[%clk 0:01:23.4]}
75. Be5 {[%clk 0:00:17.9]} 75... d3 {[%clk 0:01:22.9]} 76. Bc7 {[%clk
0:00:18.2]} 76... Bf5 {[%clk 0:01:23.3]} 77. Bd6 {[%clk 0:00:18.6]} 77... Ke4
{[%clk 0:01:23.6]} 78. Bc7 {[%clk 0:00:18.9]} 78... Kd5 {[%clk 0:01:24.1]} 79.
Bb8 {[%clk 0:00:19]} 79... Kc4 {[%clk 0:01:24.6]} 80. Be5 {[%clk 0:00:19.1]}
80... Kb3 {[%clk 0:01:25]} 81. Kc1 {[%clk 0:00:19]} 81... Ka2 {[%clk 0:01:24.5]}
82. Bd4 {[%clk 0:00:18.8]} 82... d2+ {[%clk 0:01:22.7]} 83. Kxd2 {[%clk
0:00:17]} 83... Kb1 {[%clk 0:01:23.6]} 0-1

[Event "Late-Titled-Tuesday-Blitz-September-26-2023"]
[Site "Chess.com"]
[Date "2023.09.26"]
[Round "11"]
[White "Zhigalko_Sergei"]
[Black "MagnusCarlsen"]
[Result "0-1"]
[WhiteElo "2939"]
[BlackElo "3278"]
[TimeControl "180+1"]
[EndTime "16:01:17 PDT"]
[Termination "MagnusCarlsen won by checkmate"]

1. e4 {[%clk 0:03:00.9]} 1... c6 {[%clk 0:03:00.5]} 2. d4 {[%clk 0:03:01.2]}
2... d5 {[%clk 0:03:01.2]} 3. e5 {[%clk 0:03:01.9]} 3... Bf5 {[%clk 0:03:01.4]}
4. Nf3 {[%clk 0:03:02.6]} 4... e6 {[%clk 0:03:01.8]} 5. Be2 {[%clk 0:03:03.4]}
5... h6 {[%clk 0:02:59.5]} 6. O-O {[%clk 0:03:03.4]} 6... Ne7 {[%clk 0:03:00.1]}
7. Nbd2 {[%clk 0:03:04]} 7... Nd7 {[%clk 0:02:59.7]} 8. a4 {[%clk 0:03:03.8]}
8... a6 {[%clk 0:02:56.7]} 9. a5 {[%clk 0:03:04.1]} 9... Bh7 {[%clk 0:02:50]}
10. b4 {[%clk 0:02:45.4]} 10... Ng6 {[%clk 0:02:49.9]} 11. c3 {[%clk 0:02:43.1]}
11... Nf4 {[%clk 0:02:49.9]} 12. Nb3 {[%clk 0:02:43.2]} 12... Nxe2+ {[%clk
0:02:50.1]} 13. Qxe2 {[%clk 0:02:44.1]} 13... Be7 {[%clk 0:02:50.4]} 14. Re1
{[%clk 0:02:37.7]} 14... O-O {[%clk 0:02:51]} 15. Bf4 {[%clk 0:02:28.7]} 15...
Qc7 {[%clk 0:02:45.6]} 16. Nc5 {[%clk 0:01:58.6]} 16... Rae8 {[%clk 0:02:44.5]}
17. Qd2 {[%clk 0:01:51]} 17... Kh8 {[%clk 0:02:43.3]} 18. h3 {[%clk 0:01:42.9]}
18... Rg8 {[%clk 0:02:40.4]} 19. Bg3 {[%clk 0:01:39.2]} 19... Nf8 {[%clk
0:02:35.3]} 20. Bh4 {[%clk 0:01:25.4]} 20... g5 {[%clk 0:02:34.7]} 21. Bg3
{[%clk 0:01:25.7]} 21... Ng6 {[%clk 0:02:31.8]} 22. Nh2 {[%clk 0:01:10.2]} 22...
h5 {[%clk 0:02:27.4]} 23. f3 {[%clk 0:01:03.1]} 23... Nh4 {[%clk 0:01:40.7]} 24.
Bf2 {[%clk 0:00:55.5]} 24... Rg7 {[%clk 0:01:37]} 25. Re2 {[%clk 0:00:52]} 25...
Reg8 {[%clk 0:01:36]} 26. Rae1 {[%clk 0:00:48.2]} 26... Ng6 {[%clk 0:01:35.8]}
27. Be3 {[%clk 0:00:38]} 27... Nf4 {[%clk 0:01:35.7]} 28. Bxf4 {[%clk
0:00:31.6]} 28... gxf4 {[%clk 0:01:35.8]} 29. Nd3 {[%clk 0:00:31.6]} 29... Bxd3
{[%clk 0:01:20.2]} 30. Qxd3 {[%clk 0:00:31.5]} 30... Bh4 {[%clk 0:01:20.7]} 31.
Rd1 {[%clk 0:00:30.8]} 31... Qd8 {[%clk 0:01:20.7]} 32. Kh1 {[%clk 0:00:18.9]}
32... Rg6 {[%clk 0:01:17.6]} 33. Nf1 {[%clk 0:00:17.5]} 33... Qg5 {[%clk
0:01:05.2]} 34. Rdd2 {[%clk 0:00:17.7]} 34... R8g7 {[%clk 0:01:03.4]} 35. Rc2
{[%clk 0:00:17.9]} 35... Kg8 {[%clk 0:01:03.2]} 36. Rcd2 {[%clk 0:00:18.2]}
36... Kf8 {[%clk 0:01:03.5]} 37. Rc2 {[%clk 0:00:18.8]} 37... Ke7 {[%clk
0:01:04.1]} 38. Rcd2 {[%clk 0:00:19.4]} 38... Kd7 {[%clk 0:01:02.4]} 39. Rc2
{[%clk 0:00:19.9]} 39... Rg8 {[%clk 0:00:58.9]} 40. Rcd2 {[%clk 0:00:19.7]}
40... Kc8 {[%clk 0:00:58.7]} 41. Rc2 {[%clk 0:00:20.1]} 41... Kb8 {[%clk
0:00:59.2]} 42. Rcd2 {[%clk 0:00:20.6]} 42... Ka8 {[%clk 0:00:59.9]} 43. Rc2
{[%clk 0:00:21.1]} 43... f6 {[%clk 0:00:52.4]} 44. exf6 {[%clk 0:00:18.4]} 44...
Qxf6 {[%clk 0:00:51.5]} 45. Re5 {[%clk 0:00:17.2]} 45... Qg7 {[%clk 0:00:42.1]}
46. Qe2 {[%clk 0:00:11.5]} 46... Qh7 {[%clk 0:00:39.9]} 47. Rb2 {[%clk 0:00:09]}
47... Rxg2 {[%clk 0:00:36.5]} 48. Qxg2 {[%clk 0:00:06.2]} 48... Rxg2 {[%clk
0:00:37.4]} 49. Rxg2 {[%clk 0:00:04.1]} 49... Qd3 {[%clk 0:00:36.5]} 50. Kg1
{[%clk 0:00:04.2]} 50... Qxc3 {[%clk 0:00:33.8]} 51. Rxe6 {[%clk 0:00:03.3]}
51... Qxd4+ {[%clk 0:00:33.1]} 52. Kh2 {[%clk 0:00:03]} 52... Qxb4 {[%clk
0:00:31.3]} 53. Rg8+ {[%clk 0:00:01.5]} 53... Ka7 {[%clk 0:00:31.6]} 54. Ree8
{[%clk 0:00:01.5]} 54... Qxa5 {[%clk 0:00:31.1]} 55. Re2 {[%clk 0:00:01.4]}
55... Qc3 {[%clk 0:00:29.9]} 56. Nd2 {[%clk 0:00:01.4]} 56... Be1 {[%clk
0:00:28.3]} 57. Nf1 {[%clk 0:00:01.2]} 57... Qxf3 {[%clk 0:00:27.9]} 58. Rxe1
{[%clk 0:00:01.4]} 58... Qf2+ {[%clk 0:00:28.3]} 59. Rg2 {[%clk 0:00:02]} 59...
Qxe1 {[%clk 0:00:29.2]} 60. Re2 {[%clk 0:00:02.9]} 60... Qxe2+ {[%clk
0:00:28.9]} 61. Kg1 {[%clk 0:00:03.5]} 61... f3 {[%clk 0:00:29.1]} 62. Ng3
{[%clk 0:00:04.2]} 62... Qg2# {[%clk 0:00:29.1]} 0-1

[Event "Late-Titled-Tuesday-Blitz-September-26-2023"]
[Site "Chess.com"]
[Date "2023.09.26"]
[Round "11"]
[White "bazar-wokzal"]
[Black "Chessdreamer2020"]
[Result "0-1"]
[WhiteElo "2653"]
[BlackElo "2536"]
[TimeControl "180+1"]
[EndTime "16:01:17 PDT"]
[Termination "Chessdreamer2020 won on time"]

1. e4 {[%clk 0:03:00.9]} 1... d6 {[%clk 0:02:21.6]} 2. f4 {[%clk 0:02:59.7]}
2... d5 {[%clk 0:02:21.4]} 3. exd5 {[%clk 0:02:59.3]} 3... Qxd5 {[%clk
0:02:15.9]} 4. Nc3 {[%clk 0:02:58.9]} 4... Qa5 {[%clk 0:02:15]} 5. Nf3 {[%clk
0:02:59.3]} 5... Nf6 {[%clk 0:02:13.9]} 6. d4 {[%clk 0:02:58.7]} 6... Bg4 {[%clk
0:02:13.2]} 7. h3 {[%clk 0:02:58.8]} 7... Bxf3 {[%clk 0:02:12.6]} 8. Qxf3 {[%clk
0:02:59.7]} 8... Nc6 {[%clk 0:02:12.5]} 9. Bb5 {[%clk 0:02:59.6]} 9... Qb6
{[%clk 0:02:11]} 10. Be3 {[%clk 0:02:45.3]} 10... O-O-O {[%clk 0:02:01.2]} 11.
Bxc6 {[%clk 0:02:01.8]} 11... Qxc6 {[%clk 0:02:01.2]} 12. Qxc6 {[%clk
0:02:01.1]} 12... bxc6 {[%clk 0:02:02.1]} 13. Ke2 {[%clk 0:01:59.4]} 13... Nd5
{[%clk 0:02:01.9]} 14. Ne4 {[%clk 0:01:54.8]} 14... e6 {[%clk 0:02:02.2]} 15. c4
{[%clk 0:01:49.1]} 15... Nf6 {[%clk 0:01:52.8]} 16. Ng5 {[%clk 0:01:48.7]} 16...
Rd7 {[%clk 0:01:52.6]} 17. Rhd1 {[%clk 0:01:47.3]} 17... Bd6 {[%clk 0:01:51.4]}
18. Rac1 {[%clk 0:01:40.8]} 18... Nh5 {[%clk 0:01:48.5]} 19. Kf3 {[%clk
0:01:39.2]} 19... Rhd8 {[%clk 0:01:39.5]} 20. Ne4 {[%clk 0:01:26.3]} 20... Be7
{[%clk 0:01:34.2]} 21. g4 {[%clk 0:01:19.3]} 21... Nf6 {[%clk 0:01:33.8]} 22.
Ng5 {[%clk 0:01:17.9]} 22... Bf8 {[%clk 0:01:33.8]} 23. h4 {[%clk 0:01:04.3]}
23... c5 {[%clk 0:01:23.7]} 24. d5 {[%clk 0:00:47.4]} 24... exd5 {[%clk
0:01:21.5]} 25. cxd5 {[%clk 0:00:47.8]} 25... Re8 {[%clk 0:01:02.9]} 26. Bxc5
{[%clk 0:00:44.4]} 26... h6 {[%clk 0:00:57]} 27. Bxf8 {[%clk 0:00:37.2]} 27...
Rxf8 {[%clk 0:00:55.6]} 28. Ne4 {[%clk 0:00:35.5]} 28... Rxd5 {[%clk 0:00:47.8]}
29. Rxd5 {[%clk 0:00:33]} 29... Nxd5 {[%clk 0:00:48.6]} 30. Rc5 {[%clk
0:00:33.1]} 30... Nb6 {[%clk 0:00:45.3]} 31. h5 {[%clk 0:00:27.2]} 31... Rd8
{[%clk 0:00:44]} 32. g5 {[%clk 0:00:25.6]} 32... Rd3+ {[%clk 0:00:41.8]} 33. Kg4
{[%clk 0:00:23.3]} 33... Nd5 {[%clk 0:00:26.3]} 34. gxh6 {[%clk 0:00:20.5]}
34... gxh6 {[%clk 0:00:27.2]} 35. Kf5 {[%clk 0:00:17.4]} 35... Kd7 {[%clk
0:00:23.5]} 36. Nf6+ {[%clk 0:00:15.3]} 36... Nxf6 {[%clk 0:00:21.8]} 37. Kxf6
{[%clk 0:00:16.2]} 37... Rf3 {[%clk 0:00:09.3]} 38. f5 {[%clk 0:00:15.6]} 38...
Rh3 {[%clk 0:00:09.6]} 39. Kxf7 {[%clk 0:00:14]} 39... Rxh5 {[%clk 0:00:09]} 40.
b4 {[%clk 0:00:09.4]} 40... Rh2 {[%clk 0:00:07.4]} 41. f6 {[%clk 0:00:08.8]}
41... h5 {[%clk 0:00:07.2]} 42. b5 {[%clk 0:00:07.3]} 42... h4 {[%clk
0:00:07.2]} 43. Rd5+ {[%clk 0:00:07.5]} 43... Kc8 {[%clk 0:00:06.9]} 44. Ke7
{[%clk 0:00:07.6]} 44... Rxa2 {[%clk 0:00:06.1]} 45. f7 {[%clk 0:00:02.5]} 45...
Rf2 {[%clk 0:00:04.7]} 0-1

[Event "Late-Titled-Tuesday-Blitz-September-26-2023"]
[Site "Chess.com"]
[Date "2023.09.26"]
[Round "11"]
[White "sofaceindisguise"]
[Black "Fandorine"]
[Result "1/2-1/2"]
[WhiteElo "2732"]
[BlackElo "2923"]
[TimeControl "180+1"]
[EndTime "16:01:19 PDT"]
[Termination "Game drawn - insufficient material"]

1. c4 {[%clk 0:03:00.9]} 1... e6 {[%clk 0:02:17.3]} 2. d4 {[%clk 0:02:54]} 2...
d5 {[%clk 0:02:16.9]} 3. Nc3 {[%clk 0:02:54.3]} 3... Nf6 {[%clk 0:02:16.2]} 4.
cxd5 {[%clk 0:02:52.8]} 4... exd5 {[%clk 0:02:17.1]} 5. Bg5 {[%clk 0:02:53.2]}
5... c6 {[%clk 0:02:16.4]} 6. e3 {[%clk 0:02:53.7]} 6... h6 {[%clk 0:02:16.3]}
7. Bh4 {[%clk 0:02:52.4]} 7... Be7 {[%clk 0:02:16.3]} 8. Qc2 {[%clk 0:02:50.3]}
8... O-O {[%clk 0:02:15.5]} 9. Bd3 {[%clk 0:02:50.3]} 9... Re8 {[%clk
0:02:15.8]} 10. Nge2 {[%clk 0:02:49.9]} 10... Nbd7 {[%clk 0:02:15]} 11. O-O
{[%clk 0:02:49.8]} 11... Nh5 {[%clk 0:02:15.3]} 12. Bxe7 {[%clk 0:02:48]} 12...
Qxe7 {[%clk 0:02:16.2]} 13. Rab1 {[%clk 0:02:44.6]} 13... a5 {[%clk 0:02:13.4]}
14. a3 {[%clk 0:02:44.7]} 14... Qg5 {[%clk 0:02:13]} 15. b4 {[%clk 0:02:32.6]}
15... axb4 {[%clk 0:02:13.9]} 16. axb4 {[%clk 0:02:33.3]} 16... Ndf6 {[%clk
0:02:13.7]} 17. b5 {[%clk 0:02:30]} 17... Qh4 {[%clk 0:02:01.5]} 18. Bf5 {[%clk
0:02:11.4]} 18... g6 {[%clk 0:01:59.2]} 19. Bxc8 {[%clk 0:02:05.8]} 19... Raxc8
{[%clk 0:02:00.1]} 20. bxc6 {[%clk 0:02:02.8]} 20... bxc6 {[%clk 0:01:59.6]} 21.
Rb7 {[%clk 0:01:56.6]} 21... Ng7 {[%clk 0:01:48.3]} 22. h3 {[%clk 0:01:51.5]}
22... Nf5 {[%clk 0:01:47.4]} 23. Nf4 {[%clk 0:01:29.9]} 23... Nxd4 {[%clk
0:01:37.6]} 24. Nxg6 {[%clk 0:01:30.1]} 24... Nxc2 {[%clk 0:01:17.6]} 25. Nxh4
{[%clk 0:01:29.9]} 25... d4 {[%clk 0:01:18.1]} 26. exd4 {[%clk 0:01:28.2]} 26...
Nxd4 {[%clk 0:01:19]} 27. Rd1 {[%clk 0:01:25.2]} 27... c5 {[%clk 0:01:18.7]} 28.
Nb5 {[%clk 0:01:13.7]} 28... Rcd8 {[%clk 0:00:58.5]} 29. Nxd4 {[%clk 0:01:11.2]}
29... Rxd4 {[%clk 0:00:54.6]} 30. Rxd4 {[%clk 0:01:09.5]} 30... cxd4 {[%clk
0:00:55.5]} 31. Rb1 {[%clk 0:00:54.5]} 31... Nd5 {[%clk 0:00:52]} 32. Rd1 {[%clk
0:00:53.9]} 32... Nc3 {[%clk 0:00:41.2]} 33. Rd3 {[%clk 0:00:47.9]} 33... Re1+
{[%clk 0:00:34]} 34. Kh2 {[%clk 0:00:48.2]} 34... Rd1 {[%clk 0:00:34.1]} 35.
Rxd1 {[%clk 0:00:34]} 35... Nxd1 {[%clk 0:00:35]} 36. Kg3 {[%clk 0:00:34.4]}
36... d3 {[%clk 0:00:27.8]} 37. Nf3 {[%clk 0:00:32.2]} 37... Nb2 {[%clk
0:00:15.1]} 38. Nd2 {[%clk 0:00:31.6]} 38... Kg7 {[%clk 0:00:14.7]} 39. Kf4
{[%clk 0:00:30.5]} 39... Kg6 {[%clk 0:00:15.2]} 40. g4 {[%clk 0:00:27.3]} 40...
h5 {[%clk 0:00:14.4]} 41. f3 {[%clk 0:00:21.8]} 41... f6 {[%clk 0:00:13.4]} 42.
h4 {[%clk 0:00:21.7]} 42... Nd1 {[%clk 0:00:09.7]} 43. Ke4 {[%clk 0:00:17.4]}
43... Nb2 {[%clk 0:00:04.2]} 44. Ke3 {[%clk 0:00:14.9]} 44... Kh6 {[%clk
0:00:04.1]} 45. Ne4 {[%clk 0:00:14.7]} 45... Kg6 {[%clk 0:00:03.9]} 46. Ng3
{[%clk 0:00:15]} 46... hxg4 {[%clk 0:00:02.4]} 47. fxg4 {[%clk 0:00:15.9]} 47...
Nd1+ {[%clk 0:00:02.2]} 48. Kxd3 {[%clk 0:00:14.5]} 48... Nf2+ {[%clk
0:00:02.3]} 49. Ke3 {[%clk 0:00:14.2]} 49... Nxg4+ {[%clk 0:00:02.9]} 50. Kf4
{[%clk 0:00:15.1]} 50... Nh6 {[%clk 0:00:03.4]} 51. h5+ {[%clk 0:00:15.5]} 51...
Kh7 {[%clk 0:00:03.8]} 52. Nf5 {[%clk 0:00:15.9]} 52... Nxf5 {[%clk 0:00:03.9]}
53. Kxf5 {[%clk 0:00:16.3]} 53... Kh6 {[%clk 0:00:04.8]} 54. Kxf6 {[%clk
0:00:17.2]} 54... Kxh5 {[%clk 0:00:05.4]} 1/2-1/2

[Event "Late-Titled-Tuesday-Blitz-September-26-2023"]
[Site "Chess.com"]
[Date "2023.09.26"]
[Round "11"]
[White "melissa_guez"]
[Black "Cambek64"]
[Result "0-1"]
[WhiteElo "2229"]
[BlackElo "2474"]
[TimeControl "180+1"]
[EndTime "16:01:22 PDT"]
[Termination "Cambek64 won on time"]

1. e4 {[%clk 0:03:00.9]} 1... c5 {[%clk 0:02:59.6]} 2. Nf3 {[%clk 0:02:59.8]}
2... d6 {[%clk 0:02:59.7]} 3. d4 {[%clk 0:02:59.3]} 3... cxd4 {[%clk 0:03:00]}
4. Nxd4 {[%clk 0:03:00.2]} 4... Nf6 {[%clk 0:02:59.9]} 5. Nc3 {[%clk 0:03:00.8]}
5... a6 {[%clk 0:03:00.2]} 6. Be2 {[%clk 0:03:01.3]} 6... e5 {[%clk 0:03:00.2]}
7. Nb3 {[%clk 0:03:01.2]} 7... Be7 {[%clk 0:03:00.2]} 8. O-O {[%clk 0:03:01.6]}
8... Be6 {[%clk 0:02:58.6]} 9. Bf3 {[%clk 0:03:01.9]} 9... Nbd7 {[%clk
0:02:57.7]} 10. Re1 {[%clk 0:02:59.6]} 10... O-O {[%clk 0:02:57.7]} 11. a4
{[%clk 0:02:58.3]} 11... Rc8 {[%clk 0:02:54.5]} 12. Nd2 {[%clk 0:02:58]} 12...
Nb6 {[%clk 0:02:50.8]} 13. a5 {[%clk 0:02:53.3]} 13... Nc4 {[%clk 0:02:51.1]}
14. Nxc4 {[%clk 0:02:53.5]} 14... Rxc4 {[%clk 0:02:50.5]} 15. Be3 {[%clk
0:02:22.1]} 15... Qc8 {[%clk 0:02:42.4]} 16. Re2 {[%clk 0:02:02.2]} 16... Qc6
{[%clk 0:02:17.7]} 17. Rd2 {[%clk 0:01:47.4]} 17... h6 {[%clk 0:02:12.9]} 18.
Nd5 {[%clk 0:01:44.7]} 18... Bxd5 {[%clk 0:02:06.6]} 19. exd5 {[%clk 0:01:45.6]}
19... Qd7 {[%clk 0:02:01.4]} 20. Be2 {[%clk 0:01:40.3]} 20... Rcc8 {[%clk
0:01:58.9]} 21. c4 {[%clk 0:01:37.1]} 21... Nh7 {[%clk 0:01:58.6]} 22. f4 {[%clk
0:01:35.3]} 22... exf4 {[%clk 0:01:53]} 23. Bxf4 {[%clk 0:01:36.2]} 23... Bf6
{[%clk 0:01:52.4]} 24. Rc1 {[%clk 0:01:26]} 24... Qe7 {[%clk 0:01:29.9]} 25. Bf3
{[%clk 0:01:14.7]} 25... Be5 {[%clk 0:01:29.3]} 26. Bxe5 {[%clk 0:01:08.9]}
26... Qxe5 {[%clk 0:01:27.4]} 27. Re2 {[%clk 0:01:08.9]} 27... Qf6 {[%clk
0:01:14.6]} 28. b4 {[%clk 0:01:08.3]} 28... Rfd8 {[%clk 0:01:07]} 29. c5 {[%clk
0:01:05.7]} 29... Nf8 {[%clk 0:01:02.4]} 30. c6 {[%clk 0:00:56.7]} 30... Rc7
{[%clk 0:01:01.9]} 31. Qd3 {[%clk 0:00:32.7]} 31... Ng6 {[%clk 0:00:57]} 32. Qd1
{[%clk 0:00:20.3]} 32... Ne5 {[%clk 0:00:44.8]} 33. Be4 {[%clk 0:00:18.6]} 33...
g6 {[%clk 0:00:33.2]} 34. Rf2 {[%clk 0:00:16.9]} 34... Qe7 {[%clk 0:00:31.4]}
35. Re2 {[%clk 0:00:16.1]} 35... f5 {[%clk 0:00:30.8]} 36. Bf3 {[%clk
0:00:13.1]} 36... Qh4 {[%clk 0:00:28.6]} 37. Qf1 {[%clk 0:00:08]} 37... Qxb4
{[%clk 0:00:25.8]} 38. Rb1 {[%clk 0:00:06.9]} 38... Qxa5 {[%clk 0:00:25.1]} 39.
cxb7 {[%clk 0:00:05.5]} 39... Rb8 {[%clk 0:00:20]} 40. Reb2 {[%clk 0:00:05.6]}
40... Qc5+ {[%clk 0:00:17.6]} 41. Kh1 {[%clk 0:00:05.2]} 41... h5 {[%clk
0:00:14.4]} 42. Be2 {[%clk 0:00:03.2]} 42... a5 {[%clk 0:00:10.5]} 43. Ba6
{[%clk 0:00:03.2]} 43... Qxd5 {[%clk 0:00:08.9]} 44. Be2 {[%clk 0:00:02.8]}
44... Qc6 {[%clk 0:00:06]} 45. Rd1 {[%clk 0:00:03]} 45... a4 {[%clk 0:00:04.6]}
0-1